bitfinex-derivatives/quotes_ETHF0:USTF0_20250828
["timestamp","ask_amount","ask_price","bid_price","bid_amount"]
[1756396090422,9.97546,4510.6,4508.2,4.0]
[1756396090614,0.99762,4510.2,4508.1,31.942]
[1756396090822,0.39912,4509.4,4509.2,0.39913]
[1756396091512,0.3385,4510.5,4508.3,40.8]
[1756396091828,0.39922,4508.2,4508.1,31.942]
[1756396092623,0.39921,4508.4,4508.2,0.39922]
[1756396092820,0.99782,4509.4,4508.1,31.942]
[1756396093025,0.39921,4508.4,4508.3,0.39921]
[1756396093218,0.39922,4508.3,4508.1,32.34122]
[1756396093419,0.39922,4508.3,4508.1,31.942]
[1756396093723,0.39922,4508.3,4508.1,32.34123]
[1756396093919,0.3992,4508.5,4508.4,0.3992]
[1756396094226,0.3992,4508.5,4508.1,31.942]
[1756396094420,0.39921,4508.4,4508.3,0.3992]
[1756396094716,0.99787,4509.1,4508.1,31.942]
[1756396094923,0.9978,4509.4,4508.1,31.942]
[1756396095133,0.3385,4509.9,4508.3,0.99803]
[1756396095319,0.99773,4509.7,4508.7,0.39917]
[1756396095522,0.3385,4510.5,4508.4,0.99801]
[1756396095721,0.39912,4509.4,4509.2,0.39913]
[1756396096122,0.39915,4509.0,4508.8,0.39916]
[1756396096428,0.9978,4509.4,4508.8,0.39916]
[1756396096725,0.39916,4508.9,4508.3,0.99803]
[1756396097026,0.39916,4508.9,4508.5,0.99799]
[1756396097227,0.39913,4509.3,4509.2,0.39913]
[1756396097426,0.99788,4509.0,4508.2,0.39922]
[1756396097624,0.99788,4509.0,4508.1,31.942]
[1756396097828,1.33625,4509.6,4508.9,0.39915]
[1756396098024,0.39915,4509.1,4508.9,0.39915]
[1756396098221,0.39913,4509.2,4509.0,0.39915]
[1756396098829,0.39916,4508.9,4508.7,0.39917]
[1756396099125,0.39915,4509.1,4508.9,0.39915]
[1756396099328,0.39917,4508.9,4508.7,0.39917]
[1756396099527,0.39917,4508.8,4508.7,0.39917]
[1756396099719,0.39917,4508.8,4508.1,31.942]
[1756396099720,0.9978,4509.4,4508.1,31.942]
[1756396099920,0.3992,4508.5,4508.1,32.34122]
[1756396100128,0.9979,4509.0,4508.1,31.942]
[1756396100326,1.3364,4508.9,4508.1,31.942]
[1756396100628,1.33631,4509.4,4508.1,31.942]
[1756396100828,1.99492,4511.0,4508.2,0.99805]
[1756396100829,0.39913,4509.3,4508.2,0.99805]
[1756396101028,0.39913,4509.3,4509.1,0.39913]
[1756396101230,0.3385,4509.5,4508.1,31.942]
[1756396101530,0.73761,4509.5,4509.2,0.39913]
[1756396101725,0.39908,4509.9,4509.6,0.39909]
[1756396102122,0.99761,4510.3,4508.6,1.57787118]
[1756396102323,0.3385,4509.8,4508.9,40.8]
[1756396102524,0.39919,4508.6,4508.4,0.3992]
[1756396102721,0.3992,4508.5,4508.1,31.942]
[1756396102927,0.3992,4508.5,4508.1,72.742]
[1756396103221,0.39918,4508.7,4508.5,0.39919]
[1756396103416,11.96881,4511.2,4508.2,0.99805]
[1756396103619,0.39917,4508.9,4508.7,0.39918]
[1756396103820,1.23254,4509.2,4508.1,74.31987118]
[1756396104028,0.39916,4508.9,4508.7,0.39917]
[1756396104420,0.3385,4509.3,4508.2,0.99805]
[1756396104421,0.3385,4509.3,4508.2,2.57592118]
[1756396104630,0.3385,4509.8,4508.8,0.39916]
[1756396104831,1.33621,4509.8,4508.3,0.99803]
[1756396105125,0.3385,4509.8,4508.2,1.57787118]
[1756396105330,0.3991,4509.6,4509.5,0.3991]
[1756396105518,0.3385,4510.3,4508.8,0.99793]
[1756396105723,0.3385,4510.3,4509.7,0.39909]
[1756396105920,0.39907,4509.9,4509.8,31.946]
[1756396106224,0.3385,4510.4,4509.8,31.946]
[1756396106432,0.39906,4510.0,4509.8,31.946]
[1756396106932,0.39905,4510.2,4510.0,0.39906]
[1756396107322,0.3385,4510.6,4509.8,31.946]
[1756396107323,0.39907,4510.0,4509.8,32.34507]
[1756396107524,0.39904,4510.3,4510.1,0.39905]
[1756396107727,0.99744,4511.0,4510.4,0.39902]
[1756396107922,0.39899,4510.9,4510.6,0.39901]
[1756396108125,0.3385,4511.1,4510.7,0.399]
[1756396108327,0.3385,4511.1,4509.8,33.52387118]
[1756396108523,0.39901,4510.6,4510.4,0.39902]
[1756396108729,0.39899,4510.9,4510.7,0.399]
[1756396109030,0.9973,4511.7,4510.8,0.39898]
[1756396109236,0.39899,4510.9,4510.5,0.57345639]
[1756396109424,0.3385,4511.5,4510.1,0.99764]
[1756396109725,0.39897,4511.0,4510.3,1.57787118]
[1756396109930,0.39896,4511.2,4510.8,0.39899]
[1756396110133,0.39897,4511.1,4510.8,0.39899]
[1756396110325,0.39901,4510.6,4510.3,0.39903]
[1756396110526,0.3385,4512.1,4510.1,1.75604358]
[1756396110736,0.39897,4511.1,4510.8,0.39899]
[1756396111031,0.39895,4511.3,4510.4,1.57787118]
[1756396111237,0.39894,4511.4,4510.6,0.99753]
[1756396111430,0.39896,4511.2,4511.0,0.39897]
[1756396111731,0.39894,4511.4,4511.2,0.39895]
[1756396111928,0.39892,4511.6,4511.4,0.39894]
[1756396112132,1.0,6913.7,4510.9,40.8]
[1756396112133,0.3385,4511.9,4511.7,0.39891]
[1756396112433,0.3385,4512.3,4511.5,31.941]
[1756396112825,0.3385,4512.3,4511.6,0.39891]
[1756396113021,0.7374,4511.9,4511.7,0.39891]
[1756396113429,0.3385,4511.9,4511.7,0.39891]
[1756396113636,0.3989,4511.8,4511.7,0.39891]
[1756396114134,0.39888,4512.1,4511.9,0.39889]
[1756396114332,0.5732,4511.6,4511.5,31.941]
[1756396118039,0.39892,4511.7,4511.5,31.941]
[1756396119635,0.3461,4512.6,4511.5,31.941]
[1756396119832,0.39887,4512.2,4512.0,0.39888]
[1756396120037,0.39886,4512.4,4511.5,31.941]
[1756396120233,0.99713,4512.4,4511.5,31.941]
[1756396120438,0.99715,4512.3,4511.7,0.39891]
[1756396120743,0.39892,4511.6,4511.5,31.941]
[1756396121537,0.74502,4511.6,4511.5,31.941]
[1756396122240,0.39892,4511.6,4511.5,31.941]
[1756396122439,0.39891,4511.8,4511.5,31.941]
[1756396122735,0.39886,4512.3,4511.6,0.99731]
[1756396122944,0.39885,4512.4,4512.2,0.39886]
[1756396123238,0.99699,4513.1,4512.2,0.39886]
[1756396123439,0.3461,4513.2,4512.5,0.39883]
[1756396123440,0.39883,4512.7,4512.5,0.39883]
[1756396123841,0.39881,4512.9,4512.7,0.39882]
[1756396124039,0.39881,4512.9,4512.2,0.99717]
[1756396124247,0.39881,4512.9,4512.8,0.39881]
[1756396124539,0.39882,4512.7,4512.6,0.39882]
[1756396124745,0.39882,4512.7,4512.1,0.99719]
[1756396124746,0.39883,4512.7,4512.5,0.39884]
[1756396125541,0.39884,4512.5,4512.3,0.39885]
[1756396125740,0.39883,4512.7,4512.6,0.39883]
[1756396126250,0.39879,4513.1,4512.9,0.3988]
[1756396126444,0.39881,4512.9,4512.7,0.39882]
[1756396127150,0.3461,4513.2,4512.2,0.99717]
[1756396127339,0.3988,4513.0,4512.8,0.39881]
[1756396127537,0.39883,4512.6,4512.5,0.39884]
[1756396128143,0.3461,4513.4,4512.2,0.99717]
[1756396128342,0.39879,4513.1,4512.9,0.3988]
[1756396128649,0.39882,4512.8,4512.7,0.39882]
[1756396128847,0.39883,4512.6,4512.5,0.39883]
[1756396129049,0.74493,4512.6,4512.5,0.39883]
[1756396129252,0.3461,4512.6,4512.5,0.39883]
[1756396130248,0.39878,4513.2,4512.6,0.99709]
[1756396130452,0.99684,4513.8,4512.3,0.99715]
[1756396130453,0.3461,4513.7,4513.5,0.39874]
[1756396130648,0.39874,4513.6,4513.5,31.925]
[1756396130953,0.74484,4513.6,4513.5,31.925]
[1756396131950,0.3461,4513.6,4513.5,31.925]
[1756396132145,0.39871,4514.0,4513.7,0.39873]
[1756396132351,0.39874,4513.7,4513.5,32.32375]
[1756396132667,0.39872,4513.9,4513.7,0.39873]
[1756396132866,0.3461,4513.9,4513.7,0.39873]
[1756396133262,0.3461,4513.8,4513.7,0.39873]
[1756396133462,0.74483,4513.7,4513.5,32.32375]
[1756396133656,0.3987,4514.2,4513.9,0.39871]
[1756396133865,0.39872,4513.9,4513.7,0.39873]
[1756396134563,0.3461,4513.6,4513.5,32.32375]
[1756396135069,0.3461,4513.6,4513.5,31.925]
[1756396138771,4.3461,4513.6,4513.5,31.925]
[1756396140267,0.39873,4513.7,4513.5,31.925]
[1756396140564,0.5645,4513.6,4513.5,31.925]
[1756396140768,0.5645,4513.6,4512.5,0.17521798]
[1756396140962,0.5645,4513.6,3875.0,0.25]
[1756396140963,3.676,4512.3,4508.3,2.77607647]
[1756396141266,35.918,4513.5,4506.4,0.3192]
[1756396141267,3.676,4510.5,4506.4,0.3192]
[1756396141479,3.676,4510.1,4506.4,0.3192]
[1756396141662,5.2194576,4509.5,4504.9,0.3192]
[1756396141967,0.03861197,4505.7,4505.1,0.3192]
[1756396142173,0.03861197,4505.7,4504.1,34.23712804]
[1756396142174,0.7094701,4505.6,4504.7,0.17411598]
[1756396142369,0.39947,4505.4,4505.2,5.15922349]
[1756396142568,0.7094701,4505.5,4504.1,32.02012804]
[1756396142569,0.39952,4504.9,4504.2,0.3192]
[1756396142869,0.39954,4504.7,4504.6,0.3192]
[1756396143072,0.39951,4505.0,4504.2,0.3192]
[1756396143272,0.39953,4504.8,4504.2,0.3192]
[1756396143570,0.03861197,4505.7,4504.3,0.3192]
[1756396143762,0.39946,4505.5,4504.3,0.3192]
[1756396143959,0.39948,4505.3,4504.8,5.15922349]
[1756396144166,0.20252893,4505.2,4504.8,0.3192]
[1756396144363,0.20252893,4505.1,4504.8,0.3192]
[1756396144565,0.20252893,4505.0,4504.2,0.3192]
[1756396144769,0.20252893,4504.9,4504.2,0.3192]
[1756396144971,0.20252893,4504.8,4504.2,0.3192]
[1756396145170,0.03861197,4505.7,4504.2,0.3192]
[1756396145368,0.39951,4505.0,4504.6,5.15922349]
[1756396145568,0.39498272,4505.0,4504.7,0.3192]
[1756396145769,0.03861197,4505.7,4504.2,0.3192]
[1756396145975,0.86138715,4505.6,4504.4,5.15922349]
[1756396146170,0.34929825,4505.5,4504.2,0.3192]
[1756396146378,0.23019825,4505.4,4504.8,5.55852349]
[1756396146577,0.23019825,4505.3,4504.8,5.15922349]
[1756396146774,0.23019825,4505.2,4504.8,0.3993]
[1756396147079,0.34929825,4505.1,4504.2,0.3993]
[1756396147282,0.23019825,4505.0,4504.2,0.3993]
[1756396147479,0.1191,4505.6,4504.1,32.19488546]
[1756396147771,0.22936387,4505.5,4505.2,5.15922349]
[1756396147974,0.22936387,4505.4,4504.2,0.3993]
[1756396148174,0.34764765,4505.3,4504.2,0.3993]
[1756396148370,0.1191,4506.8,4504.8,5.15922349]
[1756396148576,0.8347193,4506.7,4504.6,0.3993]
[1756396148778,0.1191,4506.5,4504.6,0.3993]
[1756396149076,0.1191,4506.3,4504.6,0.3993]
[1756396149266,0.1191,4506.1,4504.6,0.3993]
[1756396149470,0.22825172,4506.0,4504.6,5.55852349]
[1756396149673,0.1191,4505.8,4504.6,5.55852349]
[1756396149974,1.18054491,4507.2,4504.6,5.55852349]
[1756396150180,0.81644359,4506.8,4504.6,0.3993]
[1756396150381,0.81644359,4506.7,4504.6,5.55852349]
[1756396150678,0.1191,4506.5,4504.7,5.15922349]
[1756396150868,0.1191,4506.8,4504.6,0.3993]
[1756396151073,0.79812147,4506.7,4504.9,5.15922349]
[1756396151275,0.1167,4506.5,4504.7,5.15922349]
[1756396151473,0.1167,4506.2,4502.1,0.01584232]
[1756396151670,0.0146,4506.0,4502.1,0.01584232]
[1756396151869,0.0146,4505.8,4502.1,0.01584232]
[1756396152075,1.5580576,4505.6,4502.1,0.00124232]
[1756396152278,1.5434576,4504.9,4500.1,0.3993]
[1756396152480,0.79766916,4504.8,4500.7,0.3993]
[1756396152780,0.79766916,4504.7,4500.0,20.0]
[1756396152982,0.79766916,4504.6,4500.6,0.3993]
[1756396153180,0.39994,4500.1,4500.0,18.12472917]
[1756396153475,0.39994,4500.1,4495.3,10.00912]
[1756396153476,0.40014,4498.0,4495.3,1.00092]
[1756396153778,10.0005,4499.3,4495.3,0.17571039]
[1756396154077,9.99995,4499.6,4497.4,0.3993]
[1756396154282,0.22669005,4500.4,4497.5,0.3993]
[1756396154474,1.5434576,4503.1,4497.5,0.3993]
[1756396154670,1.929322,4503.9,4497.4,31.968]
[1756396154671,0.81094944,4502.2,4497.4,31.968]
[1756396154883,4.48694944,4502.1,4497.4,31.968]
[1756396155080,3.676,4501.9,4496.2,0.3993]
[1756396155278,3.676,4501.3,4496.2,0.3993]
[1756396155472,3.676,4501.1,4496.2,0.3993]
[1756396155672,0.81094944,4501.2,4494.2,0.40046]
[1756396155673,3.676,4500.9,4494.2,0.40046]
[1756396155977,3.676,4499.5,4494.1,0.10235528]
[1756396156169,5.2194576,4498.9,4494.1,0.10235528]
[1756396156369,3.676,4498.2,4494.1,0.10235528]
[1756396156572,31.979,4498.3,4494.1,0.10235528]
[1756396156573,3.676,4498.0,4494.1,0.10235528]
[1756396156777,3.676,4497.8,4494.1,0.10235528]
[1756396156977,3.676,4497.6,4494.1,0.10235528]
[1756396157178,3.676,4497.4,4494.1,0.10235528]
[1756396157376,3.676,4497.2,4494.1,0.10235528]
[1756396157571,6.63022828,4497.5,4494.1,0.10235528]
[1756396157774,31.979,4498.3,4494.2,0.3993]
[1756396157976,0.58252916,4498.2,4494.2,0.3993]
[1756396158175,0.58252916,4498.1,4494.2,0.3993]
[1756396158376,2.90718431,4498.2,4494.2,0.3993]
[1756396158571,31.979,4498.3,4494.3,31.994]
[1756396158776,31.979,4498.3,4495.8,5.15922349]
[1756396158977,31.979,4498.3,4494.9,0.3993]
[1756396159378,31.979,4498.3,4495.9,5.15922349]
[1756396159579,31.979,4498.3,4494.9,0.3993]
[1756396159778,31.979,4498.3,4495.5,0.3993]
[1756396159979,31.979,4498.3,4494.3,31.994]
[1756396160177,2.83884951,4498.2,4494.1,0.10235528]
[1756396160576,10.01447,4493.0,4492.2,0.3993]
[1756396160777,12.00862,4496.3,4491.1,0.3993]
[1756396160778,10.0158,4492.4,4491.1,0.3993]
[1756396160980,0.40073,4491.3,4489.6,32.005]
[1756396161185,0.40073,4491.3,4491.1,0.3993]
[1756396161388,0.40073,4491.3,4489.6,32.005]
[1756396161585,0.40073,4491.3,4491.2,5.15922349]
[1756396162185,32.005,4494.1,4491.2,5.55852349]
[1756396162376,32.005,4494.1,4491.2,0.3993]
[1756396162377,32.22535619,4494.1,4491.2,0.3993]
[1756396162782,32.005,4494.1,4491.2,0.3993]
[1756396162983,32.005,4494.1,4491.1,0.3993]
[1756396163179,32.005,4494.1,4492.3,0.3993]
[1756396163381,32.02,4495.6,4492.3,0.3993]
[1756396163580,32.02,4495.5,4492.3,0.3993]
[1756396163877,32.023,4495.4,4492.3,0.3993]
[1756396164274,34.97707956,4495.4,4491.1,0.3993]
[1756396165081,34.97707956,4495.4,4491.0,0.00381709]
[1756396165082,32.023,4495.4,4491.8,0.3993]
[1756396165787,32.023,4495.4,4491.8,0.40067]
[1756396166081,32.023,4495.4,4492.8,0.40059]
[1756396166288,32.023,4495.4,4492.3,0.40063]
[1756396166481,32.023,4495.4,4491.8,1.0017]
[1756396166683,0.22403061,4496.7,4492.5,1.00154]
[1756396166884,32.037,4497.0,4496.2,5.15922349]
[1756396167381,32.037,4497.0,4496.8,5.15922349]
[1756396167581,32.037,4497.0,4496.2,0.3993]
[1756396167889,32.037,4497.0,4496.9,5.15922349]
[1756396168383,32.43722,4497.0,4496.9,5.55852349]
[1756396168589,0.40022,4497.0,4496.9,9.55852349]
[1756396169486,0.40022,4497.0,4493.8,1.00125]
[1756396169487,0.40037,4495.3,4493.8,0.40049]
[1756396169785,1.00095,4495.3,4494.1,0.3993]
[1756396169976,1.00095,4495.3,4491.2,1.00182]
[1756396169977,0.4005,4495.9,4491.0,0.00381709]
[1756396170177,0.4005,4495.9,4484.9,0.2214]
[1756396170178,3.676,4493.5,4485.3,10.0316]
[1756396170383,0.4043,4493.2,4485.8,0.40121]
[1756396170684,3.676,4492.3,4484.7,10.0329]
[1756396170876,3.676,4492.1,4489.3,4.44147349]
[1756396171082,0.4043,4491.5,4486.8,32.041]
[1756396171278,0.4043,4491.3,4486.9,32.041]
[1756396171485,0.1,4490.2,4489.8,4.44147349]
[1756396171685,0.4043,4490.1,4487.2,32.044]
[1756396171881,0.1,4490.2,4487.2,32.044]
[1756396172082,0.4043,4490.1,4487.2,32.044]
[1756396172389,0.40099,4488.3,4487.3,0.3993]
[1756396172685,0.4043,4489.9,4487.4,0.3993]
[1756396173392,0.4043,4489.9,4487.6,0.40105]
[1756396173692,1.00204,4490.4,4487.7,0.3993]
[1756396173993,0.4043,4490.8,4487.7,0.3993]
[1756396174487,0.4043,4490.8,4488.0,0.40101]
[1756396174788,0.4043,4494.3,4489.8,0.3479]
[1756396174989,0.4043,4494.3,4490.2,0.40082]
[1756396175186,32.058,4494.4,4490.4,0.4008]
[1756396175390,0.4043,4494.3,4490.9,0.3479]
[1756396175584,0.4043,4494.3,4490.3,32.058]
[1756396175890,0.4043,4494.3,4491.1,0.5883]
[1756396176086,0.4043,4494.3,4491.2,0.40073]
[1756396176389,0.4043,4494.3,4490.3,32.2806]
[1756396176390,0.4043,4494.3,4490.3,31.94226735]
[1756396176582,0.4043,4494.3,4491.7,0.40068]
[1756396176781,0.4043,4494.3,4491.9,0.40066]
[1756396176986,0.4043,4494.3,4492.0,32.061]
[1756396177192,0.4043,4494.3,4492.0,32.46166]
[1756396177489,0.5814,4496.0,4492.6,0.4006]
[1756396177690,0.5814,4496.0,4492.7,0.4006]
[1756396177885,0.5814,4496.0,4492.9,0.40058]
[1756396178080,0.5814,4496.0,4493.1,0.40056]
[1756396178491,0.5814,4496.0,4493.2,0.1676]
[1756396178992,0.18874271,4495.9,4493.2,0.1676]
[1756396179192,1.31520619,4495.8,4493.2,0.1676]
[1756396179381,0.5814,4495.6,4492.0,32.061]
[1756396179586,0.5814,4495.4,4492.0,32.061]
[1756396179792,0.5814,4495.2,4492.0,32.061]
[1756396179995,10.01228,4494.0,4492.0,32.061]
[1756396180186,0.40051,4493.8,4492.0,32.061]
[1756396180382,0.40064,4492.2,4492.0,32.061]
[1756396180589,0.5814,4492.1,4488.9,0.40094]
[1756396180890,10.01357,4493.4,4488.5,32.061]
[1756396181093,0.5814,4493.2,4488.9,10.02349]
[1756396181398,0.40079,4490.6,4489.6,0.40087]
[1756396181587,0.40082,4490.2,4489.7,40.8]
[1756396181989,10.02061,4490.3,4488.5,32.061]
[1756396182184,1.00212,4490.0,4488.5,32.061]
[1756396182385,0.40096,4488.7,4488.5,30.95624735]
[1756396182580,1.00204,4490.4,4488.5,71.75624735]
[1756396182786,1.00199,4490.6,4488.5,71.75624735]
[1756396182986,1.00205,4490.3,4488.5,71.75624735]
[1756396183292,0.5814,4491.5,4488.5,71.75624735]
[1756396183492,1.00178,4491.5,4488.5,71.75624735]
[1756396183689,0.40078,4490.8,4488.6,0.22271999]
[1756396183888,0.4008,4490.4,4488.8,0.40095]
[1756396184090,0.5814,4492.1,4490.0,0.40084]
[1756396184091,0.40077,4490.9,4490.0,0.40084]
[1756396184290,1.00175,4491.7,4490.0,0.40084]
[1756396184491,0.40075,4491.1,4490.0,0.40084]
[1756396184796,0.40082,4490.2,4488.5,30.95624735]
[1756396184992,0.5814,4492.1,4488.5,30.95624735]
[1756396184993,0.40071,4491.5,4490.2,0.40082]
[1756396185298,0.5814,4492.7,4490.3,32.067]
[1756396185496,1.00161,4492.3,4490.4,0.4008]
[1756396185793,0.40077,4490.8,4490.3,30.96224735]
[1756396185986,10.01559,4492.5,4490.3,30.96224735]
[1756396185987,0.5814,4492.0,4490.3,30.96224735]
[1756396186194,0.4008,4490.5,4490.3,30.96224735]
[1756396186699,1.00169,4491.9,4490.3,30.96224735]
[1756396187093,0.40074,4491.1,4490.4,0.4008]
[1756396187394,0.40078,4490.7,4490.3,30.96224735]
[1756396187592,0.40077,4490.8,4490.3,30.96224735]
[1756396187796,1.00175,4491.6,4490.3,30.96224735]
[1756396187996,1.00178,4491.5,4490.3,30.96224735]
[1756396188199,0.40077,4490.9,4490.3,30.96224735]
[1756396188393,1.00162,4492.2,4490.6,0.40078]
[1756396188594,1.00162,4492.2,4490.3,30.2582747]
[1756396188990,0.40062,4492.5,4490.3,30.2582747]
[1756396189194,12.01561,4493.7,4490.6,1.00197]
[1756396189195,0.5814,4493.6,4490.6,1.00197]
[1756396189396,0.5814,4493.6,4491.6,0.40069]
[1756396189596,0.5814,4493.6,4491.7,0.40068]
[1756396189905,0.5814,4494.8,4492.2,0.40064]
[1756396190091,0.5814,4494.6,4492.3,32.07]
[1756396190293,0.51107048,4494.5,4492.3,32.07]
[1756396190504,0.51107048,4494.5,4492.4,0.40062]
[1756396190700,0.51107048,4494.5,4492.3,32.07]
[1756396190701,0.5814,4494.6,4492.6,0.40061]
[1756396190898,0.5814,4494.6,4492.3,32.07]
[1756396191102,1.5434576,4497.0,4492.5,1.00154]
[1756396191294,0.5814,4496.6,4493.3,0.40055]
[1756396191498,0.5814,4496.4,4492.5,1.00154]
[1756396191691,5.2194576,4497.8,4493.0,0.40057]
[1756396191692,0.5814,4496.2,4493.0,0.40057]
[1756396191897,0.5814,4496.2,4492.7,40.8]
[1756396191898,0.5814,4496.2,4493.1,0.40056]
[1756396192100,1.5434576,4497.8,4492.7,40.8]
[1756396192300,1.00089,4495.5,4493.9,0.40049]
[1756396192510,0.40043,4494.7,4494.0,32.068]
[1756396192803,0.40044,4494.6,4494.0,32.46848]
[1756396193203,0.5814,4495.8,4494.4,0.40044]
[1756396193598,0.40039,4495.1,4494.3,0.40045]
[1756396193795,0.40031,4496.0,4494.0,32.068]
[1756396193997,0.40035,4495.6,4494.8,0.40041]
[1756396194198,0.40031,4496.0,4494.4,1.00112]
[1756396194400,0.40032,4495.9,4495.1,0.40038]
[1756396194608,0.40034,4495.7,4494.1,1.00119]
[1756396194803,0.40039,4495.1,4494.0,31.36364735]
[1756396195013,0.40041,4494.9,4494.0,31.36364735]
[1756396195209,0.4004,4495.0,4494.3,0.40045]
[1756396195506,0.40041,4494.9,4494.1,0.40047]
[1756396195694,1.00079,4496.0,4494.0,31.36364735]
[1756396195899,0.40042,4494.7,4494.1,0.40047]
[1756396196294,1.00079,4495.9,4494.0,31.36364735]
[1756396196511,0.5814,4496.3,4494.0,31.36364735]
[1756396196903,0.5814,4496.3,4494.9,0.4004]
[1756396197205,0.40035,4495.6,4495.1,0.40038]
[1756396197402,0.40035,4495.5,4494.9,41.2004]
[1756396197705,0.40038,4495.2,4494.7,0.40042]
[1756396198209,0.5814,4496.3,4494.1,1.00119]
[1756396198402,0.40037,4495.4,4494.7,0.40042]
[1756396198598,1.0008,4495.9,4494.8,40.8]
[1756396198804,0.4004,4495.0,4494.8,40.8]
[1756396199111,0.5814,4496.0,4494.8,40.8]
[1756396199302,1.00084,4495.7,4494.8,40.8]
[1756396199503,1.0008,4495.9,4494.8,40.8]
[1756396199703,0.5814,4496.0,4494.6,0.40042]
[1756396199902,0.40036,4495.5,4495.1,0.40038]
[1756396200201,0.40033,4495.8,4495.2,0.40037]
[1756396200400,1.00049,4497.3,4495.7,0.40033]
[1756396200604,0.4002,4497.2,4495.8,32.054]
[1756396200805,0.40018,4497.5,4496.1,1.00075]
[1756396201007,0.40008,4498.6,4496.4,1.00068]
[1756396201210,0.40012,4498.2,4495.8,31.34951735]
[1756396201401,0.40009,4498.5,4496.1,10.00735]
[1756396201711,0.4001,4498.4,4497.7,0.40015]
[1756396201901,0.40011,4498.2,4497.8,32.053]
[1756396202305,0.40005,4498.9,4497.8,32.053]
[1756396202506,0.40008,4498.6,4498.0,0.40012]
[1756396202814,0.5814,4499.1,4497.9,0.40013]
[1756396203010,0.5814,4499.1,4497.8,32.053]
[1756396203204,1.00013,4498.9,4497.8,32.053]
[1756396203513,0.40013,4498.0,4497.8,32.053]
[1756396203713,0.40013,4498.0,4497.8,30.94824735]
[1756396203923,0.5814,4497.9,4497.8,30.94824735]
[1756396204209,0.5814,4497.4,4496.1,32.046]
[1756396204414,0.5814,4497.4,4496.2,0.40029]
[1756396204706,0.40012,4498.1,4497.3,0.98848]
[1756396204907,0.5814,4498.7,4497.4,0.5883]
[1756396205313,0.40017,4497.6,4497.4,0.5883]
[1756396205619,0.40017,4497.5,4496.2,0.5883]
[1756396205816,0.40018,4497.5,4496.6,0.40024]
[1756396206112,0.40018,4497.5,4496.2,0.5883]
[1756396206113,1.00045,4497.5,4496.2,0.5883]
[1756396206301,0.6003,4497.5,4496.2,0.5883]
[1756396206507,0.40029,4496.2,4496.1,32.046]
[1756396206708,1.00059,4496.2,4496.1,30.94124735]
[1756396206909,5.00059,4496.2,4496.1,30.94124735]
[1756396207309,1.00059,4496.2,4496.1,30.94124735]
[1756396207511,0.40017,4497.6,4496.8,0.40023]
[1756396207816,1.00024,4498.4,4497.1,0.6303]
[1756396208013,0.40018,4497.5,4497.1,0.6303]
[1756396208217,1.00038,4497.8,4496.3,40.8]
[1756396208406,0.6003,4497.7,4496.3,40.8]
[1756396208716,0.40026,4496.6,4496.2,0.6303]
[1756396209016,1.00055,4497.0,4496.1,30.94124735]
[1756396209209,0.40028,4496.3,4496.1,30.94124735]
[1756396209408,1.00058,4496.3,4496.1,30.94124735]
[1756396209705,0.6003,4496.2,4496.1,30.94124735]
[1756396209906,0.6003,4497.0,4496.1,29.8364947]
[1756396210116,0.6003,4497.0,4496.2,0.40028]
[1756396210313,0.40024,4496.8,4496.2,1.03058]
[1756396210516,0.6003,4497.2,4496.1,29.8364947]
[1756396210707,0.40026,4496.5,4496.1,29.8364947]
[1756396210915,0.40024,4496.7,4496.2,0.40029]
[1756396211209,1.00043,4497.6,4496.1,29.8364947]
[1756396211409,0.6003,4497.8,4496.2,0.6303]
[1756396211615,0.6003,4498.6,4497.4,0.40018]
[1756396211817,0.6003,4498.6,4496.7,1.00061]
[1756396211818,0.4001,4498.3,4497.7,0.40015]
[1756396212018,0.6003,4498.6,4497.5,0.40017]
[1756396212218,0.4001,4498.3,4497.8,0.40014]
[1756396212408,0.40012,4498.1,4497.9,0.6303]
[1756396212608,0.40014,4497.9,4497.5,0.40017]
[1756396212805,0.40013,4498.0,4496.4,1.00068]
[1756396213017,0.40011,4498.3,4497.8,0.40014]
[1756396213216,0.6003,4498.6,4498.0,0.40012]
[1756396213414,0.6003,4499.1,4497.8,0.40014]
[1756396213718,0.40012,4498.2,4497.8,0.40014]
[1756396213922,0.6003,4499.1,4497.8,32.036]
[1756396214221,0.40009,4498.5,4498.0,0.40012]
[1756396214412,0.4001,4498.4,4498.0,0.40012]
[1756396214612,0.40009,4498.5,4498.0,0.40012]
[1756396214912,0.6003,4498.9,4497.8,32.1234]
[1756396215118,0.40007,4498.7,4498.2,0.40011]
[1756396215317,0.40003,4499.1,4498.5,0.40008]
[1756396215513,0.40006,4498.8,4498.3,0.48749]
[1756396215719,0.40006,4498.8,4497.8,32.036]
[1756396215720,0.6003,4499.6,4498.4,0.48748]
[1756396215919,10.00851,4495.7,4494.3,1.84724291]
[1756396216211,1.00122,4494.0,4493.3,1.39e-06]
[1756396216418,10.0148,4492.9,4490.9,32.033]
[1756396216615,0.40072,4491.3,4490.9,32.033]
[1756396216806,0.40074,4491.1,4490.9,32.033]
[1756396217012,0.24783577,4491.0,4490.9,32.033]
[1756396217212,0.64830052,4491.0,4490.9,32.033]
[1756396217518,0.40075,4491.0,4490.9,32.033]
[1756396218019,0.40075,4491.0,4490.9,32.6633]
[1756396218316,0.40075,4491.0,4490.9,32.03361]
[1756396218509,0.40075,4491.0,4490.9,30.92952]
[1756396218711,0.40075,4491.0,4490.9,30.3735]